Workbook

Sheet N4_Prog_5 Assess_Practice_Sheet
AA2: EF 1.2c
B3: NATIONAL 4 | AA3: EF 1.2d
AA4: R 1.2b
B5: PROGRAMME 5 ASSESSMENT 1 | AA5: EF 1.2a
B7: Q1. A cereal box is in the shape of a cuboid. | AA7: R 1.2d
AA8: R 1.3a
C9: ="The cuboid is "&AH10&" centimetres long, "&AH11&" centimetres wide " -> The cuboid is 40 centimetres long, 5 centimetres wide | AA9: EF 1.1d | AH9: =ROUND(RAND()*(9-6)+6,0)*10 -> 80 | AI9: =CONCATENATE(AH9," cm") -> 80 cm
C10: ="and "&AH9&" centimetres high, as shown in the diagram below." -> and 80 centimetres high, as shown in the diagram below. | AA10: EF 1.1b | AH10: =ROUND(RAND()*(5-1)+1,0)*10 -> 40 | AI10: =CONCATENATE(AH10," cm") -> 40 cm
AH11: =ROUND(RAND()*(9-3)+3,0) -> 5 | AI11: 5 cm
E14: =AI9 -> 80 cm
M16: =AI11 -> 5 cm
AH17: =2*AH10*AH9 -> 6400
H18: =AI10 -> 40 cm | AH18: =2*AH9*AH11 -> 800
AH19: =2*AH10*AH11 -> 400
C20: Find the surface area of the cuboid shown. | U20: cm2 | AA20: ( 2 marks ) | AH20: =AH17+AH18+AH19 -> 7600
B33: ="Q2. A farmer has a large cylindrical container for storing grain to feed his hens. " -> Q2. A farmer has a large cylindrical container for storing grain to feed his hens. | AA33: EF 1.2d
C34: ="The area of the top of the container is "&AH37&" square metres." -> The area of the top of the container is 13 square metres.
C35: ="The height of the container is "&AH38&" metres." -> The height of the container is 5 metres.
AH37: =ROUND(RAND()*(30-11)+11,0) -> 13 | AI37: =CONCATENATE(AH37," m") -> 13 m
K38: =AH37 -> 13 | M38: m2 | AH38: =ROUND(RAND()*(19-3)+3,0)*0.5 -> 5 | AI38: =CONCATENATE(AH38," m") -> 5 m
F40: =AI38 -> 5 m
AA43: ( 2 marks )
C45: Calculate the volume of the container. | S45: m3 | AH45: =AH37*AH38 -> 65
B62: Q3. The 2 shapes below are similar right - angled triangles. | AA62: R 1.2b | AH62: =ROUND(RAND()*(19-3)+3,0)*0.5 -> 6.5
AH63: =2*ROUND(RAND()*(30-12)+3,0) -> 34 | AI63: =CONCATENATE(AH63," cm") -> 34 cm
C64: =AI65 -> 28 cm | M64: h | AH64: =AH62*AH63 -> 221 | AI64: =CONCATENATE(AH64," cm") -> 221 cm
AH65: =AH63-ROUND(RAND()*(6-2)+2,0) -> 28 | AI65: 28 cm
F69: =AI63 -> 34 cm
P70: =AI64 -> 221 cm
C73: (a) Calculate the enlargement scale factor | AA73: ( 1 mark ) | AH73: =AH62 -> 6.5
C82: (b) Calculate the height of the larger triangle | S82: cm | AA82: ( 1 mark ) | AH82: =AH65*AH62 -> 182
B93: Q4. The table below has a semi-circular top. | AA93: EF 1.2a | AH93: =ROUND(RAND()*(2-0.5)+0.5,1) -> 0.8
C94: =" The semi-circular top has a radius of "&AH93&" metres." -> The semi-circular top has a radius of 0.8 metres.
AA101: ( 2 marks )
C104: Calculate the area of the table top. | R104: m2 | S104: (two decimal places) | AH104: =ROUND(0.5*PI()*POWER((AH93),2),2) -> 1.01
B115: ="Q5. In a class, the ratio of boys to girls is "&AH115&" : "&AH116 -> Q5. In a class, the ratio of boys to girls is 4 : 3 | AA115: ( 2 marks ) | AH115: =ROUND(RAND()*(9-3)+3,0) -> 4 | AI115: =AH115+AH116 -> 7
C116: =" There are "&AH117&" boys in the class." -> There are 36 boys in the class. | AH116: =AH115-1 -> 3 | AI116: =AI115*ROUND(RAND()*(12-3)+3,0) -> 63
AH117: =AH115*AI116/AI115 -> 36
C118: (a) How many girls are there in the class? | S118: girls | AH118: =AH116*AI116/AI115 -> 27
C126: (b) How many children are in the class altogether? | V126: pupils | AA126: ( 2 marks ) | AH126: =AI116 -> 63
B137: ="Q6. AB is the diameter of a circle, centre O. " -> Q6. AB is the diameter of a circle, centre O. | AA137: R 1.2d | AH137: =ROUND(RAND()*(78-55)+55,0) -> 57
C138: =" D is a point on the circumference of the circle." -> D is a point on the circumference of the circle.
C140: =" Angle BAD is "&AH137&" degrees." -> Angle BAD is 57 degrees.
O144: =AH137 -> 57 | Q144: o
C150: Calculate the size of the shaded angle ABD. | S150: o | AA150: ( 2 marks ) | AH150: =90-AH137 -> 33
B161: ="Q7. Calculate the length of side x in the right-angled triangle below. " -> Q7. Calculate the length of side x in the right-angled triangle below. | AA161: R 1.3a | AH161: =ROUND(RAND()*(42-27)+27,0) -> 31
AH162: =AH174/COS(AH161/180*PI()) -> 65.33147024
AH163: =ROUND(AH162,2) -> 65.33 | AI163: =CONCATENATE(AH163," cm") -> 65.33 cm
R165: =AI163 -> 65.33 cm
T169: =AH161 -> 31 | V169: o
O170: x
N174: x = | S174: cm | T174: ( nearest cm ) | AA174: ( 3 marks ) | AH174: =ROUND(RAND()*(60-12)+12,0) -> 56
AI184: =ROUND(RAND()*(105-97)+97,0) -> 104 | AJ184: =AI184+1 -> 105
B185: ="Q8. (a) When "&AI186&" = "&AH185&" and "&AI188&" = "&AH187&", find the value of "&AH186&AI186&" – "&AH188&AI188&". " -> Q8. (a) When h = 4 and i = 2, find the value of 8h – 3i. | AA185: EF 1.1d | AH185: =ROUND(RAND()*(5-2)+2,0) -> 4
AH186: =ROUND(RAND()*(9-5)+5,0) -> 8 | AI186: =CHAR(AI184) -> h
AA187: ( 2 marks ) | AH187: =ROUND(RAND()*(4-2)+2,0) -> 2
AH188: =ROUND(RAND()*(5-2)+2,0) -> 3 | AI188: =CHAR(AJ184) -> i
AH189: =AH186*AH185-AH188*AH187 -> 26
C196: (b) Sally works for a camera repair shop. Her weekly pay is calculated using the formula:
AH197: =ROUND(RAND()*(19-11)+11,0)*0.5 -> 8.5
H198: ="P = "&AH197&" H + "&AH198&" R" -> P = 8.5 H + 2 R | AH198: =ROUND(RAND()*(10-3)+3,0)*0.5 -> 2
AH199: =ROUND(RAND()*(50-25)+25,0) -> 28
C200: where P is her pay (in pounds), H is the hours she works and R is the number of repairs she makes. | AH200: =ROUND(RAND()*(60-25)+25,0) -> 32
C202: ="One week she works "&AH199&" hours and repairs "&AH200&" cameras. Calculate her pay for that week." -> One week she works 28 hours and repairs 32 cameras. Calculate her pay for that week.
J204: £ | AA204: ( 2 marks ) | AH204: =AH199*AH197+AH198*AH200 -> 302
B215: ="Q9. Factorise "&AI215&AJ215&" "&AK215&" "&AL215&". " -> Q9. Factorise 7u + 21. | AA215: EF 1.1b | AH215: =ROUND(RAND()*(122-116)+116,0) -> 117 | AI215: =AH216 -> 7 | AJ215: =AH217 -> u | AK215: + | AL215: =AH220 -> 21
AH216: =ROUND(RAND()*(9-3)+3,0) -> 7
AH217: =CHAR(AH215) -> u
AA218: ( 2 marks ) | AH218: +
AH219: =ROUND(RAND()*(4-2)+2,0) -> 3 | AI219: =ROUND(RAND()*(1-0)+0,0) -> 0
AH220: =AH216*AH219 -> 21
AH222: =AH216 -> 7 | AI222: ( | AJ222: =AH217 -> u | AK222: + | AL222: =AH219 -> 3 | AM222: )
I228: END OF QUESTION PAPER | AA228: Total 22 marks
